bitfinex/quotes_SOLUSD_20250212
["timestamp","ask_amount","ask_price","bid_price","bid_amount"]
[1739380320756,20.0,195.57,195.52,40.79593635]
[1739380320932,7.6101,195.63,195.47,5.1158]
[1739380320933,3.5783,195.62,195.48,13.91380853]
[1739380321136,20.0,195.6,195.48,13.91380853]
[1739380321452,20.0,195.59,195.47,5.1158]
[1739380321624,20.0,195.59,195.48,13.41184853]
[1739380321827,20.0,195.58,195.54,40.79593635]
[1739380322050,40.79593635,195.61,195.54,40.79593635]
[1739380322221,40.79593635,195.6,195.53,40.79593635]
[1739380322424,40.79593635,195.57,195.51,40.79593635]
[1739380322650,40.79593635,195.61,195.54,40.79593635]
[1739380322824,40.79593635,195.62,195.52,13.53733853]
[1739380323021,40.79593635,195.6,195.53,40.79593635]
[1739380323356,40.79593635,195.58,195.51,40.79593635]
[1739380323539,40.79593635,195.58,195.52,40.79593635]
[1739380323740,40.79593635,195.58,195.51,40.79593635]
[1739380323936,40.79593635,195.59,195.52,40.79593635]
[1739380324136,40.79593635,195.57,195.51,40.79593635]
[1739380325338,40.79593635,195.53,195.47,40.79593635]
[1739380325655,25.15572936,195.55,195.49,25.15572936]
[1739380325823,25.15572936,195.56,195.5,25.15572936]
[1739380326029,8.9472,195.59,195.49,5.1153]
[1739380326227,8.9472,195.59,195.43,12.7923]
[1739380326428,20.0,195.56,195.43,5.1169]
[1739380326856,20.0,195.56,195.46,0.063]
[1739380327234,25.15572936,195.5,195.46,0.063]
[1739380327850,3.5805,195.51,195.46,0.063]
[1739380328357,3.5805,195.51,195.46,25.21872936]
[1739380328554,3.5801,195.52,195.46,25.21872936]
[1739380329139,34.10322936,195.59,195.51,25.15572936]
[1739380329342,3.579,195.58,195.54,25.15572936]
[1739380329855,3.579,195.58,195.53,25.15572936]
[1739380330332,3.5789,195.59,195.53,25.15572936]
[1739380330642,25.15572936,195.55,195.49,25.15572936]
[1739380330962,25.15572936,195.54,195.47,38.56757789]
[1739380331357,25.15572936,195.53,195.46,25.21872936]
[1739380331659,32.5261,195.59,195.46,25.21872936]
[1739380331660,25.15572936,195.52,195.46,0.063]
[1739380332165,25.15572936,195.5,195.46,0.063]
[1739380332455,28.73662936,195.48,195.46,0.063]
[1739380332961,3.5809,195.48,195.46,0.063]
[1739380333742,3.5805,195.5,195.47,40.90707239]
[1739380333949,3.5805,195.5,195.46,0.063]
[1739380334147,64.48757239,195.5,195.46,0.063]
[1739380334460,3.5796,195.55,195.46,0.063]
[1739380334644,3.5796,195.55,195.46,0.31398]
[1739380334847,1.5436,195.58,195.47,13.41184853]
[1739380335056,3.5793,195.57,195.49,13.53733853]
[1739380335480,3.5793,195.57,195.49,0.12549]
[1739380335650,3.5793,195.57,195.52,40.90707239]
[1739380335969,3.5793,195.57,195.51,40.90707239]
[1739380336355,3.5793,195.57,195.53,40.90707239]
[1739380336578,3.5793,195.57,195.55,40.90707239]
[1739380336873,3.5793,195.57,195.51,40.90707239]
[1739380337072,40.90707239,195.56,195.5,40.90707239]
[1739380337365,40.90707239,195.56,195.49,40.90707239]
[1739380337869,20.0,195.54,195.46,0.063]
[1739380338068,40.90707239,195.49,195.46,0.063]
[1739380338564,40.90707239,195.5,195.46,0.063]
[1739380339069,40.90707239,195.49,195.46,0.063]
[1739380339243,40.90707239,195.5,195.46,0.063]
[1739380339438,3.5807,195.49,195.46,0.063]
[1739380339850,44.48777239,195.49,195.46,0.063]
[1739380340251,3.5807,195.49,195.46,0.063]
[1739380340446,8.95,195.53,195.46,0.063]
[1739380340447,40.90707239,195.53,195.47,40.90707239]
[1739380340747,44.48597239,195.59,195.52,40.90707239]
[1739380340949,44.48597239,195.59,195.53,40.90707239]
[1739380341544,3.5789,195.59,195.53,40.90707239]
[1739380341875,0.03,195.6,195.57,40.90707239]
[1739380342668,0.03,195.6,195.54,13.41184853]
[1739380342669,0.03,195.6,195.56,40.90707239]
[1739380342975,0.03,195.6,195.55,13.41184853]
[1739380342976,0.03,195.6,195.55,40.90707239]
[1739380343276,3.5787,195.6,195.54,40.90707239]
[1739380343456,40.90707239,195.59,195.53,40.90707239]
[1739380343849,44.48577239,195.6,195.53,40.90707239]
[1739380344946,3.5787,195.6,195.55,40.90707239]
[1739380345650,40.90707239,195.57,195.51,40.90707239]
[1739380345875,40.90707239,195.57,195.49,5.115]
[1739380345876,44.48577239,195.6,195.53,40.90707239]
[1739380346179,40.90707239,195.58,195.52,40.90707239]
[1739380346380,40.90707239,195.57,195.51,54.31892092]
[1739380346545,40.90707239,195.56,195.51,13.41184853]
[1739380347243,3.5793,195.57,195.5,40.90707239]
[1739380347244,44.48637239,195.57,195.5,40.90707239]
[1739380347443,44.48597239,195.59,195.53,40.90707239]
[1739380347644,3.5789,195.59,195.53,40.90707239]
[1739380347853,40.90707239,195.58,195.53,13.41184853]
[1739380348255,3.5789,195.59,195.54,40.90707239]
[1739380348573,40.90707239,195.57,195.51,40.90707239]
[1739380348774,40.90707239,195.57,195.5,40.90707239]
[1739380349579,40.90707239,195.57,195.49,13.41184853]
[1739380349580,44.48647239,195.56,195.49,54.31892092]
[1739380349954,3.5794,195.56,195.52,40.90707239]
[1739380350357,3.579,195.58,195.53,40.90707239]
[1739380350558,44.48607239,195.58,195.51,54.31892092]
[1739380350757,3.579,195.58,195.52,40.90707239]
[1739380351058,44.48607239,195.58,195.52,40.90707239]
[1739380351375,40.90707239,195.57,195.5,54.31892092]
[1739380351579,44.48637239,195.57,195.5,54.31892092]
[1739380351954,40.90707239,195.56,195.5,54.31892092]
[1739380352377,3.5793,195.57,195.52,54.31892092]
[1739380352680,3.5793,195.57,195.53,40.90707239]
[1739380352877,3.5793,195.57,195.52,40.90707239]
[1739380353053,40.90707239,195.56,195.51,13.41184853]
[1739380353379,3.5793,195.57,195.51,40.90707239]
[1739380353576,3.5793,195.57,195.52,13.41184853]
[1739380353785,28.72756271,195.57,195.52,13.41184853]
[1739380353949,28.72756271,195.57,195.52,25.14826271]
[1739380353950,3.5793,195.57,195.52,25.14826271]
[1739380354155,3.5793,195.57,195.51,38.56011124]
[1739380354356,28.72756271,195.57,195.51,38.56011124]
[1739380354558,28.72756271,195.57,195.51,13.41184853]
[1739380354857,25.14826271,195.56,195.51,13.41184853]
[1739380355175,25.14826271,195.58,195.52,38.56011124]
[1739380355378,25.17826271,195.59,195.52,38.56011124]
[1739380355762,0.03,195.59,195.55,13.41184853]
[1739380355959,0.03,195.59,195.57,13.41184853]
[1739380356177,0.03,195.59,195.57,25.14826271]
[1739380356363,0.03,195.59,195.57,13.41184853]
[1739380357379,0.03,195.59,195.58,38.56011124]
[1739380357761,0.03,195.59,195.58,64.21033395]
[1739380357973,0.03,195.59,195.58,39.06207124]
[1739380358668,0.03,195.59,195.58,44.17497124]
[1739380358870,0.03,195.59,195.58,102.11323395]
[1739380359072,0.03,195.66,195.65,0.12549]
[1739380359275,0.03,195.66,195.65,38.68560124]
[1739380359470,0.03,195.66,195.65,38.56011124]
[1739380360888,0.03,195.66,195.65,44.17317124]
[1739380361392,0.03,195.66,195.65,45.24598033]
[1739380361787,0.03,195.66,195.65,38.68560124]
[1739380362085,0.03,195.66,195.65,38.56011124]
[1739380362286,0.03,195.66,195.65,13.41184853]
[1739380362977,0.03,195.66,195.65,38.56011124]
[1739380363493,0.03,195.66,195.65,38.81109124]
[1739380364002,0.03,195.66,195.65,38.56011124]
[1739380364211,0.03,195.66,195.65,13.41184853]
[1739380364498,0.03,195.66,195.65,38.56011124]
[1739380365909,0.03,195.66,195.65,38.68560124]
[1739380367592,0.03,195.66,195.65,38.81109124]
[1739380367894,0.03,195.66,195.65,45.24622995]
[1739380368295,8.9384,195.79,195.65,45.24622995]
[1739380368296,25.14826271,195.81,195.75,13.41184853]
[1739380368502,25.17826271,195.77,195.7,25.14826271]
[1739380368804,25.14826271,195.75,195.68,25.14826271]
[1739380368987,0.03,195.77,195.62,6.18486627]
[1739380369192,0.03,195.77,195.63,13.53733853]
[1739380369909,0.03,195.77,195.65,13.53733853]
[1739380370081,25.14826271,195.74,195.69,13.41184853]
[1739380370714,25.14826271,195.75,195.69,13.41184853]
[1739380370895,25.14826271,195.74,195.67,25.14826271]
[1739380371213,25.14826271,195.74,195.68,25.14826271]
[1739380371392,28.72426271,195.75,195.7,13.41184853]
[1739380371715,3.576,195.75,195.7,13.41184853]
[1739380371918,3.576,195.75,195.71,13.41184853]
[1739380372410,3.576,195.75,195.7,13.41184853]
[1739380372588,25.14826271,195.72,195.66,25.14826271]
[1739380372782,25.14826271,195.71,195.65,25.14826271]
[1739380372982,25.14826271,195.71,195.66,13.41184853]
[1739380373208,25.14826271,195.72,195.66,38.56011124]
[1739380373412,25.14826271,195.73,195.66,38.56011124]
[1739380373707,25.14826271,195.73,195.68,13.41184853]
[1739380374014,3.5769,195.7,195.65,0.063]
[1739380374307,3.5769,195.7,195.65,13.47484853]
[1739380374526,25.14826271,195.66,195.65,0.063]
[1739380376088,3.5776,195.66,195.65,0.063]
[1739380376817,28.72586271,195.66,195.65,0.063]
[1739380376991,3.5776,195.66,195.65,0.063]
[1739380377695,28.72586271,195.66,195.65,0.063]
[1739380379508,3.5776,195.66,195.65,0.063]
[1739380380396,28.72586271,195.66,195.65,0.063]
[1739380381587,3.5776,195.66,195.65,0.063]
[1739380382712,3.5772,195.68,195.65,0.063]
[1739380383117,36.72076271,195.7,195.65,0.063]
[1739380383613,28.72546271,195.69,195.65,0.063]
[1739380383819,25.14826271,195.66,195.65,0.063]
[1739380384998,28.72576271,195.67,195.65,0.063]
[1739380385518,25.14826271,195.66,195.65,0.063]
[1739380386825,28.72586271,195.66,195.65,0.063]
[1739380387000,3.5776,195.66,195.65,0.063]
[1739380387397,28.72586271,195.66,195.65,0.063]
[1739380392435,0.03,195.67,195.66,13.41184853]
[1739380392637,0.03,195.67,195.66,25.14826271]
[1739380392837,0.03,195.67,195.66,38.81109124]
[1739380393027,0.03,195.67,195.66,39.06207124]
[1739380393333,1.6071,195.77,195.67,13.53733853]
[1739380393334,0.03,195.77,195.67,13.53733853]
[1739380393511,0.03,195.77,195.66,25.14826271]
[1739380393512,3.6061,195.74,195.65,0.063]
[1739380393718,25.14826271,195.72,195.65,25.21126271]
[1739380393919,25.14826271,195.72,195.66,13.41184853]
[1739380394130,25.14826271,195.69,195.66,13.41184853]
[1739380394347,25.14826271,195.69,195.65,0.063]
[1739380394635,25.14826271,195.68,195.65,0.063]
[1739380394841,25.14826271,195.66,195.65,0.063]
[1739380395837,25.14826271,195.66,195.51,11.2967]
[1739380395838,25.14826271,195.57,195.5,25.21126271]
[1739380396041,25.14826271,195.57,195.51,13.41184853]
[1739380396537,25.14826271,195.57,195.5,0.063]
[1739380396538,25.14826271,195.56,195.5,0.063]
[1739380396735,3.5793,195.57,195.52,38.56011124]
[1739380396949,28.72756271,195.57,195.52,13.41184853]
[1739380397121,3.5793,195.57,195.51,38.56011124]
[1739380397322,25.14826271,195.6,195.53,38.56011124]
[1739380397718,25.14826271,195.6,195.55,13.41184853]
[1739380397918,28.72676271,195.61,195.55,13.41184853]
[1739380398133,25.14826271,195.6,195.55,13.41184853]
[1739380398438,28.72726271,195.58,195.51,25.14826271]
[1739380398646,25.14826271,195.56,195.5,25.21126271]
[1739380398847,25.14826271,195.56,195.51,13.41184853]
[1739380399928,25.14826271,195.54,195.51,0.063]
[1739380400726,3.5795,195.56,195.51,0.063]
[1739380400931,25.14826271,195.54,195.51,0.063]
[1739380401749,25.14826271,195.55,195.51,0.063]
[1739380401946,3.5798,195.55,195.51,0.063]
[1739380402542,25.14826271,195.57,195.52,13.41184853]
[1739380402748,6.2841,195.64,195.56,38.56011124]
[1739380402956,0.03,195.65,195.61,25.14826271]
[1739380403151,3.6079,195.65,195.62,25.14826271]
[1739380403546,3.6079,195.65,195.57,0.12549]
[1739380403743,3.6079,195.65,195.62,25.14826271]
[1739380403942,0.03,195.65,195.62,13.41184853]
[1739380404346,0.03,195.65,195.6,25.14826271]
[1739380404741,0.03,195.65,195.61,13.41184853]
[1739380404945,25.14826271,195.62,195.56,25.14826271]
[1739380405144,25.14826271,195.58,195.52,25.14826271]
[1739380405461,25.14826271,195.58,195.52,13.41184853]
[1739380405957,3.579,195.58,195.53,38.56011124]
[1739380406164,8.9461,195.62,195.56,13.41184853]
[1739380406165,28.72676271,195.61,195.56,13.41184853]
[1739380406345,3.5785,195.61,195.58,25.14826271]
[1739380406664,3.5785,195.61,195.57,38.56011124]
[1739380407062,28.72676271,195.61,195.54,25.14826271]
[1739380407248,28.72676271,195.61,195.51,0.063]
[1739380407249,25.14826271,195.56,195.51,0.063]
[1739380407564,18.8125,195.61,195.52,13.41184853]
[1739380407741,18.8125,195.61,195.54,25.14826271]
[1739380408143,25.14826271,195.59,195.53,25.14826271]
[1739380408467,25.14826271,195.58,195.53,13.41184853]
[1739380408664,25.14826271,195.59,195.53,13.41184853]
[1739380408867,25.14826271,195.58,195.52,13.41184853]
[1739380409164,25.14826271,195.56,195.51,0.063]
[1739380409471,25.14826271,195.57,195.51,38.62311124]
[1739380409682,18.8125,195.61,195.54,25.14826271]
[1739380409683,25.14826271,195.6,195.54,25.14826271]
[1739380409975,28.72716271,195.59,195.54,13.41184853]
[1739380410541,28.72716271,195.59,195.55,25.14826271]
[1739380410542,3.5789,195.59,195.55,25.14826271]
[1739380410752,34.12306271,195.65,195.58,38.56011124]
[1739380410949,3.578,195.64,195.61,25.14826271]
[1739380411141,3.578,195.64,195.62,25.14826271]
[1739380411364,3.578,195.64,195.62,13.41184853]
[1739380411563,0.03,195.65,195.64,13.41184853]
[1739380411775,0.03,195.65,195.64,38.56011124]
[1739380412077,0.03,195.65,195.64,13.41184853]
[1739380412443,0.03,195.65,195.64,38.56011124]
[1739380413254,0.03,195.65,195.62,25.14826271]
[1739380413456,25.14826271,195.64,195.57,25.14826271]
[1739380413660,25.17826271,195.65,195.58,38.56011124]
[1739380413963,25.14826271,195.64,195.58,13.41184853]
[1739380414254,28.72636271,195.63,195.57,25.14826271]
[1739380414465,25.14826271,195.6,195.53,25.14826271]
[1739380414667,25.14826271,195.58,195.51,25.21126271]
[1739380414976,25.14826271,195.56,195.51,0.063]
[1739380415182,25.14826271,195.58,195.52,13.41184853]
[1739380415478,25.14826271,195.57,195.52,13.41184853]
[1739380415770,25.14826271,195.58,195.52,13.41184853]
[1739380415942,25.14826271,195.59,195.53,13.41184853]
[1739380416148,25.14826271,195.6,195.54,25.14826271]
[1739380416451,3.5789,195.59,195.55,13.41184853]
[1739380416650,3.5789,195.59,195.55,38.56011124]
[1739380416858,3.5785,195.61,195.58,25.14826271]
[1739380417071,0.03,195.65,195.53,0.12549]
[1739380417072,3.578,195.64,195.6,25.14826271]
[1739380417379,3.578,195.64,195.54,5.114]
[1739380417380,3.578,195.64,195.62,25.14826271]
[1739380417578,3.578,195.64,195.59,38.56011124]
[1739380418154,25.14826271,195.62,195.55,25.14826271]
[1739380418483,25.14826271,195.61,195.54,25.14826271]
[1739380418979,25.14826271,195.57,195.51,25.21126271]
[1739380419184,25.14826271,195.55,195.51,0.063]
[1739380419893,26.76366271,195.52,195.51,0.063]
[1739380420057,30.34376271,195.52,195.51,0.063]
[1739380420252,30.34376271,195.52,195.5,0.063]
[1739380420253,25.14826271,195.51,195.5,0.063]
[1739380421367,28.72856271,195.51,195.5,0.063]
[1739380421771,44.49000021,195.51,195.5,0.063]
[1739380422680,85.39970042,195.51,195.5,0.063]
[1739380423075,44.49000021,195.51,195.5,0.063]
[1739380423882,20.0,195.48,195.46,0.063]
[1739380424091,47.52390021,195.47,195.46,0.063]
[1739380424789,60.90970021,195.48,195.46,0.063]
[1739380425494,40.90970021,195.47,195.46,0.063]
[1739380425669,3.5811,195.47,195.46,0.063]
[1739380425864,44.49080021,195.47,195.46,0.063]
[1739380426568,3.5811,195.47,195.46,0.063]
[1739380426886,44.49080021,195.47,195.46,0.063]
[1739380427088,60.90970021,195.48,195.46,0.063]
[1739380427281,7.7396,195.52,195.46,0.063]
[1739380427282,5.1957,195.52,195.47,40.90970021]
[1739380427486,3.5803,195.52,195.48,40.90970021]
[1739380427685,40.90970021,195.54,195.46,0.063]
[1739380427686,12.5293,195.54,195.46,0.063]
[1739380427882,20.0,195.51,195.46,0.063]
[1739380428194,40.90970021,195.5,195.46,0.063]
[1739380428381,3.5798,195.54,195.46,0.063]
[1739380429097,3.5791,195.58,195.5,0.12549]
[1739380429296,8.9455,195.63,195.5,0.25098]
[1739380429499,42.50100021,195.65,195.59,40.90970021]
[1739380429803,0.03,195.65,195.63,40.90970021]
[1739380429977,0.03,195.65,195.64,40.90970021]
[1739380430487,0.03,195.65,195.59,40.90970021]
[1739380430798,0.03,195.65,195.59,54.32154874]
[1739380431167,40.93970021,195.65,195.59,54.32154874]
[1739380431405,40.90970021,195.64,195.58,40.90970021]
[1739380431573,40.90970021,195.64,195.52,1.07359885]
[1739380431574,40.90970021,195.62,195.56,40.90970021]
[1739380431782,40.90970021,195.62,195.58,13.41184853]
[1739380431983,40.90970021,195.6,195.54,40.90970021]
[1739380432199,40.90970021,195.58,195.51,40.90970021]
[1739380432404,40.90970021,195.54,195.46,0.063]
[1739380432578,22.0,195.6,195.46,0.063]
[1739380432776,40.90970021,195.52,195.46,0.063]
[1739380433402,40.90970021,195.58,195.51,40.90970021]
[1739380433584,60.90970021,195.6,195.53,40.90970021]
[1739380433793,20.0,195.58,195.54,40.90970021]
[1739380434311,44.48840021,195.6,195.54,40.90970021]
[1739380434602,40.90970021,195.57,195.51,40.90970021]
[1739380435281,3.5787,195.6,195.55,40.90970021]
[1739380435605,1.5489,195.63,195.58,54.32154874]
[1739380435777,3.5781,195.64,195.59,40.90970021]
[1739380436173,40.93970021,195.65,195.59,40.90970021]
[1739380436375,40.93970021,195.65,195.64,40.90970021]
[1739380436376,0.03,195.65,195.64,40.90970021]
[1739380436684,0.03,195.65,195.64,54.32154874]
[1739380437303,0.03,195.65,195.64,40.90970021]
[1739380437717,0.03,195.65,195.64,54.44703874]
[1739380437919,0.0001,195.65,195.64,60.93490874]
[1739380438121,0.03,195.74,195.65,13.91380853]
[1739380438331,0.03,195.74,195.67,13.53733853]
[1739380438494,0.03,195.74,195.71,40.90970021]
[1739380438699,0.03,195.74,195.73,40.90970021]
[1739380439012,0.03,195.74,195.73,54.32154874]
[1739380439197,0.03,195.74,195.73,54.44703874]
[1739380439794,0.03,195.74,195.73,54.32154874]
[1739380440021,0.03,195.74,195.71,40.90970021]
[1739380440197,0.03,195.74,195.69,40.90970021]
[1739380440405,40.90970021,195.73,195.67,40.90970021]
[1739380440798,40.93970021,195.74,195.67,40.90970021]
[1739380441105,40.90970021,195.73,195.67,40.90970021]
[1739380441289,0.03,195.74,195.73,13.41184853]
[1739380441490,0.03,195.74,195.73,54.32154874]
[1739380442317,0.03,195.74,195.68,0.12549]
[1739380442318,0.03,195.74,195.71,40.90970021]
[1739380442697,0.03,195.74,195.73,40.90970021]
[1739380442905,0.03,195.74,195.73,54.32154874]
[1739380443726,0.03,195.74,195.71,40.90970021]
[1739380443903,0.03,195.74,195.72,13.41184853]
[1739380444098,0.03,195.74,195.73,54.32154874]
[1739380445405,0.03,195.74,195.73,54.82350874]
[1739380445923,0.03,195.74,195.73,59.55603874]
[1739380446219,0.03,195.74,195.73,59.43054874]
[1739380446532,0.03,195.74,195.73,61.00516155]
[1739380448531,0.03,195.8,195.78,1.0]
[1739380448831,0.03,195.8,195.79,96.42886395]
[1739380449030,0.03,195.8,195.79,54.44703874]
[1739380449931,0.03,195.8,195.79,59.55453874]
[1739380450126,0.03,195.8,195.79,100.71521895]
[1739380450332,0.03,195.8,195.79,101.9128154]
[1739380450631,0.03,195.8,195.79,100.71521895]
[1739380450836,0.03,195.8,195.79,59.55453874]
[1739380451139,0.03,195.8,195.79,59.42904874]
[1739380452752,0.03,195.8,195.75,40.90970021]
[1739380452925,40.93970021,195.8,195.74,40.90970021]
[1739380453242,0.03,195.8,195.78,40.90970021]
[1739380453417,0.03,195.8,195.73,18.52064853]
[1739380453418,0.03,195.8,195.73,5.1088]
[1739380453736,7.9108,195.79,195.67,5.1106]
[1739380453937,3.5754,195.78,195.67,5.1106]
[1739380454241,20.0,195.76,195.65,60.863]
[1739380454546,40.90970021,195.71,195.65,40.97270021]
[1739380454754,40.90970021,195.68,195.65,0.063]
[1739380454930,40.90970021,195.69,195.65,0.063]
[1739380455135,40.90970021,195.72,195.66,40.90970021]
[1739380455332,20.0,195.7,195.65,40.97270021]
[1739380455532,20.0,195.7,195.66,40.90970021]
[1739380455941,23.5769,195.7,195.65,40.97270021]
[1739380456223,23.5769,195.7,195.65,0.063]
[1739380456224,44.48660021,195.7,195.65,0.063]
[1739380456422,3.5769,195.7,195.65,40.97270021]
[1739380456648,40.90970021,195.74,195.67,40.90970021]
[1739380456842,3.5761,195.74,195.7,40.90970021]
[1739380457144,20.0,195.73,195.7,40.90970021]
[1739380457314,3.5754,195.78,195.72,40.90970021]
[1739380457640,20.0,195.76,195.72,40.90970021]
[1739380458043,3.5754,195.78,195.73,40.90970021]
[1739380458247,3.5754,195.78,195.66,5.23639]
[1739380458248,44.48510021,195.78,195.71,40.90970021]
[1739380458548,44.48510021,195.78,195.68,40.90970021]
[1739380458549,40.90970021,195.75,195.68,40.90970021]
[1739380458753,40.90970021,195.74,195.68,40.90970021]
[1739380459050,40.90970021,195.73,195.67,40.90970021]
[1739380459261,40.90970021,195.7,195.65,0.063]
[1739380459424,40.90970021,195.73,195.67,40.90970021]
[1739380459616,40.90970021,195.72,195.65,40.97270021]
[1739380459820,40.90970021,195.71,195.65,40.97270021]
[1739380460128,3.5761,195.74,195.65,18.58584853]
[1739380461332,44.48580021,195.74,195.68,40.90970021]
[1739380462019,44.48580021,195.74,195.67,40.90970021]
[1739380462540,3.5761,195.74,195.7,40.90970021]
[1739380462744,3.5759,195.76,195.72,40.90970021]
[1739380463257,3.5758,195.76,195.71,40.90970021]
[1739380464155,0.03,195.77,195.75,40.90970021]
[1739380464528,0.03,195.77,195.74,40.90970021]
[1739380465147,0.03,195.77,195.76,40.90970021]
[1739380466236,0.03,195.77,195.76,54.32154874]
[1739380466544,0.03,195.77,195.76,40.90970021]
[1739380468137,0.03,195.77,195.73,40.90970021]
[1739380468470,0.03,195.77,195.74,40.90970021]
[1739380468833,0.03,195.77,195.76,40.90970021]
[1739380469348,0.03,195.77,195.76,54.32154874]
[1739380469659,0.03,195.77,195.76,38.49482987]
[1739380469870,0.03,195.77,195.76,43.60302987]
[1739380470235,0.03,195.77,195.76,43.72851987]
[1739380470948,0.03,195.77,195.76,43.60302987]
[1739380472765,0.03,195.77,195.76,25.08298134]
[1739380472969,0.03,195.77,195.73,25.08298134]
[1739380473262,0.03,195.77,195.72,30.19208134]
[1739380473561,0.03,195.77,195.75,25.08298134]
[1739380473769,0.03,195.77,195.76,25.08298134]
[1739380474659,0.03,195.77,195.76,25.14598134]
[1739380476086,0.03,195.77,195.76,38.55782987]
[1739380478172,0.03,195.77,195.76,0.063]
[1739380478490,25.11298134,195.77,195.76,0.063]
[1739380478694,31.39128134,195.77,195.76,0.063]
[1739380479200,6.3083,195.77,195.76,0.063]
[1739380480092,9.8839,195.77,195.76,0.063]
[1739380480307,0.03,195.77,195.76,0.063]
[1739380481594,28.68858134,195.77,195.76,0.063]
[1739380481971,3.6056,195.77,195.76,0.063]
[1739380482288,0.03,195.77,195.76,0.063]
[1739380482496,0.03,195.77,195.76,25.14598134]
[1739380483069,0.03,195.77,195.76,0.063]
[1739380484097,25.11298134,195.77,195.76,0.063]
[1739380484973,26.76218134,195.77,195.76,0.063]
[1739380485177,27.76218134,195.77,195.65,25.14598134]
[1739380485385,25.08298134,195.72,195.65,25.14598134]
[1739380485797,25.08298134,195.71,195.65,25.14598134]
[1739380486519,28.65978134,195.71,195.65,25.14598134]
[1739380487000,3.5768,195.71,195.65,25.14598134]
[1739380487502,25.08298134,195.75,195.68,25.08298134]
[1739380488182,37.59858134,195.76,195.69,25.08298134]
[1739380488383,25.08298134,195.75,195.69,25.08298134]
[1739380488595,28.65878134,195.76,195.7,25.08298134]
[1739380488895,25.08298134,195.74,195.68,25.08298134]
[1739380489394,3.5761,195.74,195.68,25.08298134]
[1739380489980,28.65908134,195.74,195.67,25.08298134]
[1739380490180,25.08298134,195.72,195.66,25.08298134]
[1739380490393,25.08298134,195.71,195.65,25.14598134]
[1739380490600,25.08298134,195.7,195.65,0.063]
[1739380490799,25.08298134,195.71,195.65,25.14598134]
[1739380491001,25.08298134,195.68,195.65,0.063]
[1739380491688,3.5774,195.68,195.65,0.063]
[1739380492081,25.08298134,195.7,195.65,0.063]
[1739380492286,3.577,195.7,195.65,25.14598134]
[1739380492481,3.5766,195.72,195.67,25.08298134]
[1739380492689,3.5763,195.74,195.7,25.08298134]
[1739380492897,3.5763,195.74,195.71,25.08298134]
[1739380493094,6.295,195.75,195.72,25.08298134]
[1739380493290,31.37798134,195.75,195.69,25.08298134]
[1739380493502,34.95408134,195.75,195.68,25.08298134]
[1739380493908,34.95408134,195.75,195.69,25.08298134]
[1739380494407,9.8711,195.75,195.69,25.08298134]
[1739380494600,34.95408134,195.75,195.69,25.08298134]
[1739380494980,28.65928134,195.74,195.68,25.08298134]
[1739380495183,25.08298134,195.71,195.65,25.14598134]
[1739380495581,25.08298134,195.69,195.65,0.063]
[1739380495781,25.08298134,195.66,195.65,0.063]
[1739380495982,25.08298134,195.67,195.65,0.063]
[1739380496288,25.08298134,195.72,195.65,25.14598134]
[1739380496495,25.08298134,195.71,195.65,0.063]
[1739380496696,25.08298134,195.7,195.65,0.063]
[1739380497006,25.08298134,195.72,195.66,25.08298134]
[1739380497316,25.08298134,195.72,195.65,0.063]
[1739380497317,25.08298134,195.71,195.65,25.14598134]
[1739380497516,28.65958134,195.72,195.65,25.14598134]
[1739380497686,3.5766,195.72,195.67,25.08298134]
[1739380497896,3.5766,195.72,195.68,25.08298134]
[1739380498089,3.5766,195.72,195.69,25.08298134]
[1739380498317,3.5766,195.72,195.68,25.08298134]
[1739380498818,3.5766,195.72,195.69,25.08298134]
[1739380499198,31.37798134,195.75,195.69,25.08298134]
[1739380499401,3.5761,195.74,195.68,13.41184853]
[1739380499593,3.6389,195.76,195.71,25.08298134]
[1739380500018,3.6389,195.76,195.7,25.08298134]
[1739380500322,3.6389,195.76,195.72,25.08298134]
[1739380500622,28.72188134,195.76,195.69,25.08298134]
[1739380500829,28.72188134,195.76,195.7,25.08298134]
[1739380501124,28.72188134,195.76,195.68,19.59492109]